Cogmind - Beta 9.4 @@@ ROGUE MODE // 2020.01.24 @ 20:38:05 Player: jes Result: Destroyed by as-48097 with Assembled Heavy Rifle Performance ------------- Evolutions (0) 0 Regions Visited (2) 400 Robots Destroyed (25) 125 Value Destroyed (651) 651 Prototype IDs (0) 0 Alien Tech Used (0) 0 Bonus (0) 0 TOTAL SCORE: 1176 Bonus ------- None Cogmind --------- Core Integrity 0/250 Matter 251/300 Energy 83/100 System Corruption 0% Temperature Cool (0) Movement Core (100) Ox1 Location -10/Mines Parts ------- > --- POWER (1) -------- (None) > --- PROPULSION (2) --- (None) > --- UTILITY (2) ------ Small Storage Unit > --- WEAPON (2) ------- Medium Laser > --- INVENTORY (6) ---- Light Assault Rifle Peak State ------------ > --- POWER ------------ Ion Engine > --- PROPULSION ------- Aluminum Leg Aluminum Leg > --- UTILITY ---------- Small Storage Unit Power Shielding > --- WEAPON ----------- Small Laser Assault Rifle > --- INVENTORY -------- Light Ion Engine Aluminum Leg Aluminum Leg Medium Laser Light Cannon Grenade Launcher [Rating: 7] Favorites ----------- Power Ion Engine Engine Ion Engine Propulsion Aluminum Leg Leg Aluminum Leg Utility Small Storage Unit Storage Small Storage Unit Protection Propulsion Shielding Weapon Assault Rifle Energy Gun Small Laser Ballistic Gun Assault Rifle Ballistic Cannon Light Cannon Launcher Grenade Launcher Build | -11 -10 -10 ------- Run | Scr Mat Min Slots Evolved . | . . . Power . | . . . Propulsion . | . . . Utility . | . . . Weapon . | . . . Parts Attached 32 | 6 16 10 Power 5 | 1 2 2 Engine 5 | 1 2 2 Core . | . . . Reactor . | . . . Propulsion 11 | 2 6 3 Treads . | . . . Leg 11 | 2 6 3 Wheel . | . . . Hover . | . . . Flight . | . . . Utility 3 | 1 2 . Device . | . . . Storage 1 | 1 . . Processor . | . . . Hackware . | . . . Protection 2 | . 2 . Artifact . | . . . Weapon 13 | 2 6 5 Energy Gun 3 | 1 1 1 Energy Cannon . | . . . Ballistic Gun 7 | 1 4 2 Ballistic Cannon 1 | . 1 . Launcher 2 | . . 2 Special Weapon . | . . . Impact Weapon . | . . . Slashing Weapon . | . . . Piercing Weapon . | . . . Special Melee Weapon . | . . . Unidentified Prototypes . | . . . Parts Lost 13 | . 3 10 Power 2 | . . 2 Propulsion 5 | . 1 4 Utility 1 | . . 1 Weapon 5 | . 2 3 Highest Loss Streak 10 | . 2 10 Average Slot Usage (%) 94 | . 92 98 Engine 13 | . 13 13 Leg 27 | . 27 28 Storage 14 | . 14 14 Protection 10 | . 8 13 Energy Gun 4 | . 6 . Ballistic Gun 20 | . 17 26 Ballistic Cannon 1 | . 2 . Naked Turns . | . . . Heaviest Build 15 | 12 15 13 Greatest Support 20 | 20 20 20 Greatest Overweight (x) . | . . . Average Overweight (x) . | . . . Largest Inventory Capacity 6 | 6 6 6 Average Capacity 5 | 4 6 6 Most Carried 6 | 2 6 6 Average Carried 4 | 1 4 5 Final Capacity 6 | 6 6 6 Final Carried 6 | 2 6 1 Class Distribution -------------------- 65% | Mutant 34% | Scavenger-Mutant Dominant Class ---------------- Mutant | -10/Materials Scavenger-Mutant | -10/Mines Resources | -11 -10 -10 ----------- Run | Scr Mat Min Matter Collected 799 | 208 423 168 Remotely . | . . . Salvage Created 767 | . 536 231 Parts 55 | . 40 15 Haulers Intercepted . | . . . Recyclers Shooed 1 | . 1 . Parts Field Recycled . | . . . Retrieved Matter . | . . . Parts Self-Destructed . | . . . Prevented . | . . . Kills | -11 -10 -10 ------- Run | Scr Mat Min Combat Hostiles Destroyed 18 | . 13 5 Guns 15 | . 10 5 Cannons 3 | . 3 . Classes Destroyed 6 | . 5 1 Worker 4 | . 3 1 Builder 2 | . 1 1 Recycler 1 | . 1 . Swarmer 3 | . 3 . Grunt 14 | . 10 4 Demolisher 1 | . . 1 Best Kill Streak 6 | . 6 3 Combat Bots Only 4 | . 4 2 Max Kills in Single Turn 2 | . 2 2 Gunslinging 1 | . 1 . Exploded . | . . . Melee . | . . . Uniques/NPCs Destroyed . | . . . Combat | -11 -10 -10 -------- Run | Scr Mat Min Damage Taken 1565 | . 713 852 Core 263 | . 111 152 Absorbed by Shields . | . . . Core Remaining (%) 100 | 100 . . Volleys Fired 91 | . 61 30 Largest 2 | . 2 2 Hottest 70 | . 70 70 Shots Fired 177 | . 120 57 Gun 151 | . 99 52 Cannon 21 | . 21 . Launcher 5 | . . 5 Special . | . . . Kinetic 134 | . 85 49 Thermal 38 | . 35 3 Explosive 5 | . . 5 Electromagnetic . | . . . Robot Hit Streak 13 | . 13 6 Robot Miss Streak 3 | . 3 2 Penetration Max . | . . . Secondary Targets 3 | . 2 1 Max Gunslinging Chain 1 | . 1 1 Shots Hit Robots 114 | . 77 37 Core Hits 53 | . 34 19 Critical Hits 2 | . 1 1 Critical Kills . | . . . Critical Parts Destroyed 2 | . 1 1 Melee Attacks . | . . . Impact . | . . . Slashing . | . . . Piercing . | . . . Sneak Attacks . | . . . Combat Hostiles . | . . . Follow-up Attacks . | . . . Damage Inflicted 1468 | . 973 495 Guns 1177 | . 791 386 Cannons 182 | . 182 . Explosions 109 | . . 109 Melee . | . . . Ramming . | . . . Kinetic 1104 | . 730 374 Thermal 255 | . 243 12 Explosive 109 | . . 109 Electromagnetic . | . . . Impact . | . . . Slashing . | . . . Piercing . | . . . Highest Corruption . | . . . Average Corruption . | . . . Corruption Purged . | . . . Overload Shots . | . . . Overflow Damage 13 | . 13 . Projectiles 13 | . 13 . Explosions . | . . . Melee . | . . . Knockbacks 4 | . 4 . Impact . | . . . Kinetic 4 | . 4 . Secondary . | . . . Self-Inflicted Damage . | . . . Shots . | . . . Rammed . | . . . Targets Rammed . | . . . Kicked . | . . . Crushed . | . . . Highest Temperature 114 | . 114 15 Average Temperature 29 | . 33 6 Received Heat Transfer 378 | . 261 117 Siege Activations . | . . . Robots Corrupted . | . . . Combat Hostiles . | . . . Parts Fried . | . . . Impact Corruptions . | . . . Robots Melted . | . . . Combat Hostiles . | . . . Parts Melted . | . . . Heat Transferred 646 | . 609 37 Parts Sabotaged . | . . . Parts Stolen . | . . . Parts Stripped . | . . . Power Chain Reactions . | . . . Missiles Intercepted . | . . . Alert | -11 -10 -10 ------- Run | Scr Mat Min Peak Influence 311 | . 311 181 Average Influence 121 | . 127 140 Maximum Alert Level 1 | . 1 . Low Security (%) 91 | 100 84 100 Level 1 8 | . 15 . Level 2 . | . . . Level 3 . | . . . Level 4 . | . . . Level 5 . | . . . High Security . | . . . Max Security . | . . . Squads Dispatched 1 | . 1 . Investigation . | . . . Extermination . | . . . Reinforcement 1 | . 1 . Assault . | . . . Garrison . | . . . Intercept . | . . . Construction Impeded . | . . . Haulers Reinforced . | . . . Stealth | -11 -10 -10 --------- Run | Scr Mat Min Distress Signals 5 | . 5 . Communications Jammed . | . . . Distress Signals . | . . . Times Spotted 30 | . 20 10 Peak Tracking Total 6 | . 5 6 Tactical Retreats 1 | . . 1 Traps | -11 -10 -10 ------- Run | Scr Mat Min Traps Triggered 1 | . 1 . Indirectly . | . . . Trap Hack Attempts . | . . . Triggered . | . . . Disarmed . | . . . Reprogrammed . | . . . Reused . | . . . Traps Extracted . | . . . Installed . | . . . Triggered . | . . . Machines | -11 -10 -10 ---------- Run | Scr Mat Min Machines Disabled 2 | . 1 1 Max in Single Turn 1 | . 1 1 Machines Sabotaged . | . . . Garrisons Compromised . | . . . Overloaded Fab Kills . | . . . Fab Network Shutdowns . | . . . Hacking | -11 -10 -10 --------- Run | Scr Mat Min Machines Accessed 3 | . 3 . Terminals 2 | . 2 . Fabricators . | . . . Repair Stations . | . . . Recycling Units 1 | . 1 . Scanalyzers . | . . . Garrison Access . | . . . Total Hacks 10 | . 10 . Successful 4 | . 4 . Failed 6 | . 6 . Catastrophic . | . . . Database Lockouts . | . . . Manual . | . . . Terminals 9 | . 9 . Fabricators . | . . . Repair Stations . | . . . Recycling Units 1 | . 1 . Scanalyzers . | . . . Garrison Access . | . . . Terminal Hacks 3 | . 3 . Record 1 | . 1 . Emergency Access Points 1 | . 1 . Hauler Manifests 1 | . 1 . Fabricator Hacks . | . . . Repair Station Hacks . | . . . Recycling Unit Hacks 1 | . 1 . Retrieve Components 1 | . 1 . Scanalyzer . | . . . Garrison Access Hacks . | . . . Unauthorized Hacks . | . . . Terminals . | . . . Fabricators . | . . . Repair Stations . | . . . Recycling Units . | . . . Scanalyzers . | . . . Garrison Access . | . . . Data Cores Recovered . | . . . Used . | . . . Hacking Detections 2 | . 2 . Full Trace Events . | . . . Feedback Events . | . . . Feedback Blocked . | . . . Robot Schematics Acquired . | . . . Robots Built . | . . . Matter . | . . . Time . | . . . Total Robot Build Rating . | . . . Part Schematics Acquired . | . . . Parts Built . | . . . Matter . | . . . Time . | . . . Total Part Build Rating . | . . . Parts Repaired . | . . . Time . | . . . Parts Recycled . | . . . Recycled Matter . | . . . Retrieved Matter . | . . . Retrieved Components 3 | . 3 . Parts Scanalyzed . | . . . Part Schematics Acquired . | . . . Parts Damaged . | . . . Bothacking | -11 -10 -10 ------------ Run | Scr Mat Min Used RIF Installer . | . . . Robots Hacked . | . . . Non-combat . | . . . Combat . | . . . Robot Hacks Applied . | . . . Relay Couplers Released . | . . . Robots Rewired . | . . . Allies Hacked . | . . . Hacks Repelled . | . . . Allies | -11 -10 -10 -------- Run | Scr Mat Min Total Allies . | . . . Largest Group . | . . . Highest-Rated Group . | . . . Highest-Rated Ally . | . . . Total Orders . | . . . Ally Attacks . | . . . Total Damage . | . . . Kills . | . . . Allies Corrupted . | . . . Allies Melted . | . . . Intel | -11 -10 -10 ------- Run | Scr Mat Min Robot Analysis Total . | . . . Derelict Logs Recovered 1 | . . 1 Drone Launches . | . . . Drone Recoveries . | . . . Exploration | -11 -10 -10 ------------- Run | Scr Mat Min Turns Passed 971 | 83 577 311 Spaces Moved 532 | 65 294 173 Core 8 | 8 . . Treads . | . . . Legs 524 | 57 294 173 Wheels . | . . . Hover . | . . . Flight . | . . . Fastest Speed 50 | 50 120 120 Average Speed 118 | 111 120 120 Slowest Speed 120 | 120 120 120 Overloaded Moves . | . . . Propulsion Burnouts . | . . . Robots Hopped . | . . . Cave-ins Triggered . | . . . Exploration Rate (%) 29 | 3 47 39 Regions Visited 2 Branch Regions 1 Pre-discovered Areas 1 | . . 1 Known Exits Taken . | . . . Unknown Exits Taken 2 | 1 1 . Scrap Searched 2 | . . 2 Spaces Dug . | . . . Terrain Destroyed 29 | . . 29 Melee . | . . . Projectile . | . . . AOE 29 | . . 29 Actions | -11 -10 -10 --------- Run | Scr Mat Min Total 698 | 72 401 225 Wait 26 | . 18 8 Move 530 | 64 293 173 Hop . | . . . Pick Up 7 | 2 5 . Fast Attach 13 | 6 6 1 Attach 10 | . 3 7 Detach 2 | . 1 1 Swap 9 | . 7 2 Drop 10 | . 7 3 Fire 91 | . 61 30 Melee . | . . . Ram . | . . . Kick . | . . . Crush . | . . . Escape Stasis . | . . . Rewire . | . . . Trap . | . . . Miscellaneous . | . . . Route ------- -11/Scrapyard -10/Materials (discovered 2 exits: [*Mat] / [*Min]) -10/Mines History --------- Turn | Location | Event 20 | -11/Scrapyard | Discovered new exit (range 16) 84 | -11/Scrapyard | Entered Materials 277 | -10/Materials | Discovered new exit (range 13) 306 | -10/Materials | Build established: Mutant 624 | -10/Materials | Discovered new exit (range 7) 661 | -10/Materials | Entered Mines 670 | -10/Mines | Core integrity fell below 50% 866 | -10/Mines | Learned location of Storage (-9) 917 | -10/Mines | Assembled infested the area 922 | -10/Mines | Assisted by a Guerilla fighting off Assembled 969 | -10/Mines | Core integrity fell below 20% 972 | -10/Mines | Destroyed by as-48097 with Assembled Heavy Rifle Last Messages --------------- 00954_ U-05 Engineer lays Concrete. 00956_ U-05 Engineer builds a Wall. 00957_ U-05 Engineer destroyed. 00957_ K-01 Serf destroyed. 00959_ The unstable cave ceiling collapses. 00959_ Grenade Launcher destroyed. 00961_ The unstable cave ceiling collapses. 00961_ Ion Engine destroyed. 00963_ The unstable cave ceiling collapses. 00963_ as-02332 destroyed. 00965_ Aluminum Leg destroyed. 00967_ Lgt. Ion Engine destroyed. 00968_ Propulsion Shielding destroyed. 00969_ The unstable cave ceiling collapses. 00970_ Aluminum Leg destroyed. 00970_ Assault Rifle destroyed. 00971_ U-05 Engineer builds a Wall. 00972_ The unstable cave ceiling collapses. 00972_ Aluminum Leg destroyed. 00972_ as-90353 destroyed. Map ----- +----------------------------------------------------+ | | | | | | | | | ?????????????????????????????????????????????????? | | ?????????????????????????????????????????????????? | | ???????????????##????????????????????????????????? | | ?????????????## ##???????????????????????????????? | | ?????????????# #???????????????????????????????? | | ?????????????# ????????????????????????????????? | | ????????????## ????????????????????????????????? | | ????????????# #????????#####???????????????????? | | ????????????# #??????## ##??????????????????? | | ????????????# ##????## #??????????????????? | | ???????????# ###### ##?????????????????? | | ???????#### ## ##????????????? | | ??????# ###### #????????????? | | #?????# ##????## = #???????????? | | # ##???# ######?????# =!####### ?????????? | | ?# ??# #??????????# %!*#????????? ???????????? | | ?# ## #?????????## *% ##????????????????????? | | ?# #?????????# d! ##???????????????????? | | ## ## #????????## ##??????????????????? | | ## #????????# #??????????????????? | | #????????# #??????????????????? | | ## ##????????# @ ###????????????????? | | ???# #?????????# a a #????????????????? | | ?????# #?????????# # #????????????????? | | ???????# #?????????## ## #????????????????? | | ????????# #??????????## ### #????????????????? | | ????????# #???????????#######?# #????????????????? | | ????????# #???????????????????# #????????????????? | | ????????# #???????????????????# #????????????????? | | ????????# #???????????????????#=#????????????????? | | ????????# #???????????????????#%#????????????????? | | ????????# #???????????????????# #????????????????? | | ????????# #??????????????????? #????????????????? | | ????????# #??????????????????? ????????????????? | | ????????# #??????????????????? ????????????????? | | ##??????# #??????????????????? ????????????????? | | #####??# #??????????????????? ????????????????? | | #### #??????????????????? ????????????????? | | #?????????????????? ????????????????? | | #####??????????????????# ????????????????? | | #??????????????????????# ????????????????? | | ##???????????????????????# ????????????????? | | ! ##????????????????????????? #????????????????? | | ! ##????????????????????????????????????????????? | | ##?????????????????????????????????????????????? | | ##??????????????????????????????????????????????? | +----------------------------------------------------+ Best States ------------- Heat Dissipation 25 Energy Generation 10 Energy Capacity 250 Matter Stores 300 Matter Capacity 300 Sight Range 16 Terrain Scan Density 10 Power Shielding 33 Propulsion Shielding 33 Evasion (%) 40 Item Schematics ----------------- None Robot Schematics ------------------ None Fabricated ------------ Nothing Alien Tech Used ----------------- None Achievements -------------- None Challenges ------------ None Game ------ Seed MappingShadeRifle Manual? 0 Play Time 00:21:21 Cumulative 10.8 hours Start 2020.01.23 @ 21:46:09 End 2020.01.24 @ 20:38:05 Sessions 3 Manual Loads 0 Difficulty Rogue Special Mode None Game No. 11 Rogue 11 Adventurer 0 Explorer 0 Win Type - Total 0 Types 0/0/0/0/0/0/0 Lore% 7 Gallery% 13 Achievement% 11 Wizard Run 0 Options --------- ASCII 1 Keyboard 1 Movement Vi Keybinds 0 Fullscreen 0 Font 16/Terminus Map View 76x50 Tactical HUD 1 Map Filters NONE Filters NONE Steam 1 RUN: 81ae6d69-e7fe-447e-a8a9-f704307e19e1